bitfinex-derivatives/quotes_BTCF0:USTF0_20250406
["timestamp","ask_amount","ask_price","bid_price","bid_amount"]
[1743965628175,0.3608992,78955.0,78949.0,0.95291966]
[1743965628466,0.0009792,78955.0,78949.0,0.95291966]
[1743965628670,9.92e-05,78955.0,78949.0,0.88956115]
[1743965628865,0.3608992,78955.0,78949.0,0.88956115]
[1743965629069,9.92e-05,78955.0,78949.0,1.25036115]
[1743965630167,0.3608992,78955.0,78949.0,1.25036115]
[1743965630370,0.3608992,78955.0,78949.0,0.88956115]
[1743965630563,9.92e-05,78955.0,78949.0,0.88956115]
[1743965630759,0.3608,78954.0,78949.0,1.03956115]
[1743965630968,9.92e-05,78955.0,78949.0,1.40036115]
[1743965631360,9.92e-05,78955.0,78949.0,1.03956115]
[1743965631670,9.92e-05,78955.0,78949.0,1.33700264]
[1743965632061,9.92e-05,78955.0,78950.0,0.12909778]
[1743965632265,9.92e-05,78955.0,78950.0,1.02947092]
[1743965632770,0.0009392,78955.0,78951.0,0.12665923]
[1743965632970,0.0009392,78955.0,78951.0,0.88729923]
[1743965632971,9.92e-05,78955.0,78951.0,0.88729923]
[1743965633272,9.92e-05,78955.0,78952.0,0.18962255]
[1743965633462,0.3608,78953.0,78952.0,0.95034255]
[1743965633662,0.36164,78953.0,78952.0,0.95034255]
[1743965633865,0.36164,78953.0,78952.0,1.07699937]
[1743965634071,0.36164,78953.0,78952.0,1.09445738]
[1743965634770,0.74444,78953.0,78952.0,1.03109887]
[1743965635173,0.36164,78953.0,78952.0,1.03709887]
[1743965635773,0.3608,78961.0,78952.0,1.18580667]
[1743965635972,0.3608,78961.0,78953.0,0.01745801]
[1743965636173,0.3608,78967.0,78955.0,0.3608]
[1743965636470,0.3608,78967.0,78956.0,0.20820376]
[1743965636682,0.3608,78967.0,78957.0,0.01745801]
[1743965636973,0.3608,78967.0,78958.0,0.01745801]
[1743965637280,0.1888,78966.0,78959.0,0.01745801]
[1743965637481,0.3705,78976.0,78960.0,0.01745801]
[1743965637671,0.1888,78976.0,78961.0,0.01745801]
[1743965637870,0.1888,78976.0,78962.0,0.01735288]
[1743965638071,0.1888,78976.0,78962.0,0.83913241]
[1743965638279,0.1888,78976.0,78963.0,0.3608]
[1743965638483,0.1888,78976.0,78963.0,1.24744239]
[1743965638777,0.1816,78975.0,78964.0,0.19033976]
[1743965638979,0.1816,78975.0,78964.0,0.92033976]
[1743965639182,0.1888,78976.0,78964.0,0.92033976]
[1743965639581,0.1888,78976.0,78965.0,0.12663116]
[1743965639778,0.1888,78976.0,78965.0,0.86663116]
[1743965639983,0.1888,78976.0,78966.0,0.18983526]
[1743965640183,0.18944,78976.0,78966.0,0.19047526]
[1743965640384,0.1816,78975.0,78966.0,0.90047526]
[1743965640681,0.18224,78975.0,78967.0,0.12663036]
[1743965640985,0.3608,78969.0,78967.0,0.81391185]
[1743965641282,0.3824,78968.0,78967.0,0.81391185]
[1743965641484,0.38304,78968.0,78967.0,0.39391185]
[1743965641686,0.53304,78968.0,78967.0,0.58357808]
[1743965642078,0.53304,78968.0,78950.0,0.00011059]
[1743965642374,0.7216,78951.0,78927.0,0.00063349]
[1743965642576,0.3608,78928.0,78927.0,0.55127349]
[1743965642785,0.3616,78928.0,78927.0,0.55127349]
[1743965642982,0.5116,78928.0,78927.0,0.32127349]
[1743965643184,0.5116,78928.0,78910.0,0.52367524]
[1743965643381,0.7216,78911.0,78910.0,0.73431524]
[1743965643685,0.72256001,78911.0,78910.0,0.18879912]
[1743965643884,0.87483333,78911.0,78903.0,0.54130345]
[1743965644193,0.2608,78904.0,78903.0,0.77213354]
[1743965644378,0.26220001,78904.0,78903.0,0.81213354]
[1743965644583,0.00140001,78904.0,78903.0,1.0013732]
[1743965644791,0.3608,78904.0,78903.0,1.12809904]
[1743965644982,0.36216,78904.0,78903.0,1.12809904]
[1743965645284,0.36216,78904.0,78903.0,1.48809904]
[1743965645889,0.26216,78904.0,78903.0,1.48809904]
[1743965646192,0.36176001,78904.0,78903.0,0.94679559]
[1743965646385,0.00096001,78904.0,78903.0,0.94679559]
[1743965646584,0.1852,78910.0,78903.0,0.94679559]
[1743965646982,0.00013933,78915.0,78903.0,0.88343708]
[1743965647584,0.18453933,78915.0,78903.0,0.88343708]
[1743965647781,0.3608,78912.0,78903.0,0.88343708]
[1743965647986,0.3608,78904.0,78903.0,0.88343708]
[1743965648576,0.1844,78911.0,78903.0,0.88343708]
[1743965648781,0.1827,78910.0,78904.0,0.1841]
[1743965648981,0.1827,78910.0,78904.0,0.9141]
[1743965649288,0.1988,78909.0,78905.0,0.19059293]
[1743965649493,0.3608,78914.0,78905.0,1.00733002]
[1743965649678,0.3608,78932.0,78911.0,0.3608]
[1743965649883,0.3608,78941.0,78920.0,0.29744149]
[1743965650082,0.1983,78940.0,78921.0,0.3865]
[1743965650282,0.1983,78940.0,78921.0,1.45366356]
[1743965650488,0.1983,78940.0,78922.0,0.1859]
[1743965650687,0.00948874,78950.0,78939.0,0.3608]
[1743965650877,0.00014328,78963.0,78949.0,0.3608]
[1743965651084,0.3608,78979.0,78962.0,0.3608]
[1743965651391,0.00076,78967.0,78963.0,0.3865]
[1743965651591,0.1983,78978.0,78963.0,1.28755774]
[1743965651783,0.3608,78972.0,78963.0,1.21625188]
[1743965652087,0.1983,78971.0,78963.0,1.21625188]
[1743965652388,0.00076,78971.0,78964.0,0.1983172]
[1743965652584,0.1983,78977.0,78964.0,0.8989572]
[1743965652783,0.1983,78977.0,78971.0,0.3608]
[1743965652784,0.19906,78977.0,78971.0,0.3608]
[1743965652984,0.1983,78977.0,78972.0,0.31144149]
[1743965653189,0.1983,78977.0,78972.0,1.21180414]
[1743965653378,0.00018997,78978.0,78972.0,1.21180414]
[1743965653781,0.00018997,78978.0,78973.0,0.12663437]
[1743965653985,0.00018997,78978.0,78973.0,0.90735437]
[1743965654186,0.00018997,78978.0,78974.0,0.18955651]
[1743965654482,0.00018997,78978.0,78974.0,1.06179651]
[1743965654688,0.00094997,78978.0,78974.0,1.06179651]
[1743965654883,0.00018997,78978.0,78975.0,0.12662074]
[1743965655184,0.1912,78997.0,78977.0,0.3608]
[1743965655493,0.4633,79000.0,78987.0,0.3608]
[1743965655692,0.4633,79000.0,78988.0,0.1816]
[1743965655879,0.4633,79000.0,78989.0,0.01715786]
[1743965656078,0.1906,78999.0,78989.0,0.88319935]
[1743965656292,0.1906,78999.0,78989.0,1.25568143]
[1743965656493,0.1906,78999.0,78989.0,1.38229175]
[1743965656693,0.0930062,79000.0,78989.0,1.86033547]
[1743965656892,0.0930062,79000.0,78999.0,0.3608]
[1743965657095,0.3608,79027.0,78999.0,1.2208]
[1743965657296,0.1906,79026.0,79010.0,0.70716951]
[1743965657481,0.1906,79026.0,79011.0,0.1838]
[1743965657684,0.1906,79026.0,79012.0,0.00015908]
[1743965657888,0.1906,79026.0,79013.0,0.01724372]
[1743965658086,0.1906,79026.0,79013.0,1.06414182]
[1743965658496,0.3608,79018.0,79013.0,1.06414182]
[1743965658692,0.1906,79017.0,79014.0,0.01724372]
[1743965658896,0.3732,79017.0,79014.0,0.57724372]
[1743965659090,0.884,79017.0,79015.0,0.18966424]
[1743965659288,0.884,79017.0,79015.0,0.59010209]
[1743965659596,0.734,79017.0,79015.0,1.02010209]
[1743965659896,0.3608,79017.0,79015.0,0.83043785]
[1743965660096,0.36156,79017.0,79016.0,0.1975]
[1743965660390,0.36164,79017.0,79016.0,1.04752409]
[1743965660892,0.72244,79017.0,79016.0,0.97658073]
[1743965661591,0.36164,79017.0,79016.0,0.97658073]
[1743965662199,0.36164,79017.0,79016.0,0.91322222]
[1743965662595,0.3608,79033.0,79016.0,0.91322222]
[1743965662894,0.3608,79033.0,79021.0,0.3608]
[1743965663095,0.3608,79033.0,79022.0,0.3808]
[1743965663295,0.3608,79033.0,79022.0,1.26032075]
[1743965663489,0.3608,79033.0,79023.0,0.12655584]
[1743965663696,0.3612,79024.0,79023.0,0.85719584]
[1743965663998,0.3612,79024.0,79023.0,0.62602103]
[1743965663999,0.51196,79024.0,79023.0,0.62602103]
[1743965665098,0.51196,79024.0,79023.0,0.56266252]
[1743965665799,0.00116,79024.0,79023.0,0.98266252]
[1743965665988,0.0004,79024.0,79023.0,0.98266252]
[1743965667889,0.3608,79033.0,79023.0,0.98266252]
[1743965668091,0.3608,79033.0,79023.0,0.93832365]
[1743965669197,0.3518,79033.0,79023.0,0.93832365]
[1743965669395,0.3518,79033.0,79024.0,0.1839]
[1743965669593,0.3518,79033.0,79024.0,0.8639]
[1743965669896,0.3518,79033.0,79025.0,0.19025868]
[1743965670097,0.3518,79033.0,79025.0,1.0274753]
[1743965670698,0.1869,79032.0,79025.0,1.0274753]
[1743965670892,0.3608,79026.0,79025.0,1.0274753]
[1743965671092,0.00084,79026.0,79025.0,1.04571523]
[1743965671299,0.384,79032.0,79025.0,0.98235672]
[1743965671500,0.38484,79032.0,79025.0,0.98235672]
[1743965671699,0.38484,79032.0,79026.0,0.01823993]
[1743965671997,0.38484,79032.0,79026.0,0.56887993]
[1743965672301,0.21444,79031.0,79027.0,0.31555404]
[1743965672596,0.3608,79028.0,79012.0,0.00015908]
[1743965672801,0.3618,79028.0,79020.0,0.3608]
[1743965673001,0.3618,79028.0,79027.0,0.19062636]
[1743965673308,0.3618,79028.0,79027.0,0.2387603]
[1743965673693,0.3618,79028.0,79027.0,0.42894163]
[1743965673904,0.3618,79028.0,79027.0,0.55547745]
[1743965674205,0.3618,79028.0,79027.0,0.49211894]
[1743965674509,0.7226,79028.0,79027.0,0.49211894]
[1743965674808,0.8726,79028.0,79004.0,0.3608]
[1743965675006,0.3608,79013.0,79009.0,0.46018985]
[1743965675202,0.3608,79010.0,79009.0,0.25018985]
[1743965675389,0.3608,79010.0,79009.0,0.23618985]
[1743965675594,0.51200001,79010.0,78985.0,0.3608]
[1743965675899,0.3608,79000.0,78999.0,0.18063292]
[1743965676096,0.3608,79000.0,78992.0,0.0001172]
[1743965676097,0.57416001,79000.0,78992.0,0.0001172]
[1743965676399,0.1848,78999.0,78992.0,0.46938988]
[1743965676697,0.1848,78999.0,78993.0,0.12656705]
[1743965676904,0.00018963,79004.0,78994.0,0.3608]
[1743965677107,0.00018963,79004.0,79001.0,0.3608]
[1743965677295,0.1848,79019.0,79002.0,0.11834149]
[1743965677496,0.3608,79015.0,79002.0,1.08802531]
[1743965677696,0.1848,79014.0,79002.0,1.21461479]
[1743965677901,0.16897595,79014.0,79003.0,0.1853]
[1743965678102,0.16897595,79014.0,79003.0,0.7653]
[1743965678303,0.16897595,79014.0,79004.0,0.18968382]
[1743965678508,0.16897595,79014.0,79008.0,0.3608]
[1743965678702,0.16897595,79014.0,79008.0,1.0808]
[1743965679002,0.3608,79013.0,79009.0,0.191019]
[1743965679210,0.3608,79013.0,79009.0,0.60758365]
[1743965679408,0.3608,79013.0,79009.0,0.45758365]
[1743965679608,0.005,79019.0,79009.0,0.26656465]
[1743965679908,0.00120001,79019.0,79010.0,0.18910554]
[1743965680209,0.005,79014.0,79011.0,0.01832711]
[1743965680504,0.005,79014.0,79012.0,0.01812572]
[1743965680698,0.3608,79016.0,79012.0,0.48648817]
[1743965680900,0.5108,79016.0,79012.0,0.48648817]
[1743965681102,0.1885,79015.0,79012.0,0.48648817]
[1743965681411,0.1885,79015.0,78978.0,0.3608]
[1743965681607,0.3608,78993.0,78969.0,0.3608]
[1743965681906,0.3608,78988.0,78987.0,0.282]
[1743965682411,0.3608,78988.0,78987.0,0.47085728]
[1743965682601,0.3608,78988.0,78987.0,0.59743395]
[1743965682807,0.3621034,78988.0,78987.0,0.59743395]
[1743965683102,0.0013034,78988.0,78987.0,0.59743395]
[1743965683304,0.00018985,78995.0,78987.0,1.28537544]
[1743965683608,0.20776,79015.0,78994.0,0.3608]
[1743965683806,0.3608,79019.0,79002.0,0.3608]
[1743965684112,0.36200001,79019.0,79003.0,0.57963621]
[1743965684307,0.3608,79009.0,79003.0,0.78903291]
[1743965684515,0.3608,79009.0,79003.0,0.59573291]
[1743965685012,0.4824,79008.0,79003.0,0.59573291]
[1743965685212,0.48360001,79008.0,79003.0,0.59573291]
[1743965685511,0.63360001,79008.0,79003.0,0.59573291]
[1743965686309,0.48360001,79008.0,79003.0,0.59573291]
[1743965686510,0.48360001,79008.0,79003.0,0.5323744]
[1743965686713,0.36700001,79008.0,79003.0,0.5333744]
[1743965686907,0.36700001,79008.0,79004.0,0.3785]
[1743965687109,0.36700001,79008.0,79004.0,0.6485]
[1743965687408,0.36700001,79008.0,79005.0,0.18895447]
[1743965687613,0.36700001,79008.0,79005.0,0.57552793]
[1743965688299,0.1216,79007.0,79005.0,0.57552793]
[1743965688700,0.3658,79008.0,79005.0,0.57552793]
[1743965688901,0.3658,79008.0,79006.0,0.3812]
[1743965689203,0.3648,79008.0,79007.0,0.19032417]
[1743965689402,0.3648,79008.0,79007.0,0.40696566]
[1743965689603,0.5148,79008.0,79007.0,0.53353832]
[1743965689822,0.5108,79008.0,79007.0,0.40657266]
[1743965690010,0.3648,79008.0,79007.0,0.40657266]
[1743965690215,0.3648,79008.0,79007.0,0.59734067]
[1743965692322,0.004,79008.0,79007.0,0.59734067]
[1743965692507,0.00520001,79008.0,79007.0,0.53398216]
[1743965692707,0.004,79008.0,79007.0,0.53398216]
[1743965693411,0.3648,79008.0,79007.0,0.53398216]
[1743965693610,0.36612,79008.0,79007.0,0.53398216]
[1743965694715,0.00532,79008.0,79007.0,0.53398216]
[1743965694925,0.004,79008.0,79007.0,0.53398216]
[1743965695423,0.004,79008.0,79007.0,0.47062365]
[1743965695919,8.994e-05,79016.0,79007.0,1.02062365]
[1743965696120,8.994e-05,79016.0,79015.0,0.3608]
[1743965696321,1.27548,79023.0,79015.0,1.0808]
[1743965696513,0.04577944,79032.0,79015.0,1.27044229]
[1743965696710,0.00927608,79036.0,79016.0,0.50427026]
[1743965696912,0.3608,79032.0,79016.0,1.02427026]
[1743965697123,0.3608,79032.0,79018.0,0.00018985]
[1743965697124,0.34608504,79030.0,79018.0,0.00018985]
[1743965697416,0.00011034,79020.0,79018.0,0.11018985]
[1743965697617,0.00011034,79020.0,79019.0,0.18975101]
[1743965697819,0.00011034,79020.0,79019.0,0.64629564]
[1743965698019,0.00131035,79020.0,79019.0,0.64629564]
[1743965698616,0.00131035,79020.0,79019.0,0.58293713]
[1743965699425,0.00131035,79020.0,79019.0,0.76793713]
[1743965699620,0.00011034,79020.0,79019.0,0.94853713]
[1743965699817,0.00011034,79020.0,79019.0,0.76353713]
[1743965700020,0.19451034,79020.0,79019.0,0.76353713]
[1743965700723,0.31621034,79020.0,79019.0,0.58293713]
[1743965700917,0.46621034,79020.0,79019.0,0.5074409]
[1743965701117,0.46621034,79020.0,79019.0,0.2075409]
[1743965701320,0.46621034,79020.0,79019.0,0.1775409]
[1743965701523,0.46745035,79020.0,79019.0,0.50296219]
[1743965701738,0.31745035,79020.0,79019.0,0.45976219]
[1743965702026,0.46745035,79020.0,79019.0,0.45976219]
[1743965702323,0.46745035,79020.0,78980.0,0.3608]
[1743965702521,0.34608504,78990.0,78986.0,0.04]
[1743965702716,0.20164,78989.0,78988.0,0.19085409]
[1743965703024,0.20164,78989.0,78988.0,0.29]
[1743965703222,0.3608,78998.0,78988.0,0.49]
[1743965703422,0.36208,78998.0,78997.0,0.00015155]
[1743965703617,0.36208,78998.0,78997.0,0.29015155]
[1743965703817,0.51208,78998.0,78997.0,0.47943528]
[1743965704119,0.36208,78998.0,78997.0,0.60602156]
[1743965704321,0.51208,78998.0,78997.0,0.60602156]
[1743965704626,0.51208,78998.0,78997.0,0.4789015]
[1743965704830,0.51208,78998.0,78997.0,0.28961777]
[1743965705328,0.51208,78998.0,78997.0,0.478609]
[1743965706723,0.36708,78998.0,78997.0,0.478609]
[1743965707030,0.51708,78998.0,78997.0,0.20415777]
[1743965707217,0.51708,78998.0,78997.0,0.18355777]
[1743965707521,0.51708,78998.0,78997.0,0.2394]
[1743965707721,0.51708,78998.0,78997.0,0.28202777]
[1743965707919,0.36708,78998.0,78997.0,0.45238835]
[1743965708125,0.36708,78998.0,78997.0,0.43178835]
[1743965708527,0.00018985,79001.0,78997.0,0.79258835]
[1743965708829,0.19944,79006.0,78997.0,0.43178835]
[1743965709035,0.3608,79007.0,78997.0,0.43178835]
[1743965709231,1.84486445,79029.0,79004.0,0.3608]
[1743965709419,1.84486445,79029.0,79019.0,0.3608]
[1743965709730,0.14532869,79032.0,79019.0,1.3916]
[1743965709935,0.22473541,79030.0,79019.0,1.34735099]
[1743965710135,0.22553541,79030.0,79019.0,1.34799099]
[1743965710426,0.0008,79030.0,79019.0,1.34799099]
[1743965710634,0.00095997,79030.0,79019.0,1.28474988]
[1743965710822,0.00095997,79030.0,79028.0,0.3608]
[1743965711024,0.14532869,79032.0,79028.0,0.66144]
[1743965711332,0.3608,79050.0,79029.0,0.18872293]
[1743965711533,0.00088001,79048.0,79036.0,0.3608]
[1743965711732,0.00088001,79048.0,79036.0,0.6618]
[1743965711933,0.00088001,79048.0,79037.0,0.1897503]
[1743965712127,0.00088001,79048.0,79038.0,0.00014921]
[1743965712430,0.0004,79060.0,79043.0,0.3608]
[1743965712630,0.0004,79060.0,79043.0,0.71116]
[1743965712631,0.04764117,79060.0,79043.0,0.71116]
[1743965712837,0.0004,79060.0,79059.0,0.3608]
[1743965713033,0.0004,79060.0,79059.0,0.22152]
[1743965713225,0.0004,79060.0,79059.0,0.37337729]
[1743965713226,0.71,79060.0,79059.0,0.37337729]
[1743965713538,0.9072426,79060.0,79059.0,0.4998771]
[1743965713736,0.9072426,79060.0,79059.0,0.43651859]
[1743965713932,0.3619426,79060.0,79059.0,0.41541859]
[1743965714137,0.5119426,79060.0,79059.0,0.39431859]
[1743965714328,0.9050426,79060.0,79059.0,0.39291859]
[1743965714527,0.9513626,79060.0,79059.0,0.411847]
[1743965714824,1.1013626,79060.0,79059.0,0.42924321]
[1743965715330,1.1013626,79060.0,79059.0,0.2693]
[1743965715634,1.1033626,79060.0,79059.0,0.56404105]
[1743965715840,1.1033626,79060.0,79059.0,0.52376105]
[1743965716031,1.1033626,79060.0,79059.0,0.50306105]
[1743965716231,0.9533626,79060.0,79059.0,0.48236105]
[1743965716431,1.1033626,79060.0,79059.0,0.46166105]
[1743965716735,0.9533626,79060.0,79059.0,0.39830254]
[1743965717735,0.9550026,79060.0,79059.0,0.39830254]
[1743965717935,0.5615426,79060.0,79059.0,0.39830254]
[1743965718434,0.19712,79066.0,79059.0,0.75910254]
[1743965718632,0.19712,79066.0,79060.0,0.1924]
[1743965718838,0.19708,79089.0,79060.0,0.93364]
[1743965719028,1.32203721,79083.0,79073.0,0.3608]
[1743965719223,0.3608,79090.0,79082.0,0.3608]
[1743965719224,0.1968,79087.0,79082.0,0.3608]
[1743965719531,0.1,79100.0,79083.0,0.37139716]
[1743965719532,0.50622708,79098.0,79083.0,0.37139716]
[1743965719736,0.0025286,79095.0,79083.0,1.07927865]
[1743965719932,0.54297403,79106.0,79094.0,0.3608]
[1743965720128,0.54297403,79106.0,79097.0,0.3608]
[1743965720431,0.54297403,79106.0,79097.0,0.67204]
[1743965720638,0.54297403,79106.0,79098.0,0.31483648]
[1743965720834,0.18217403,79106.0,79098.0,0.49611648]
[1743965721227,0.18217403,79106.0,79099.0,0.3608]
[1743965721538,0.21617846,79114.0,79102.0,0.3608]
[1743965721736,0.19612,79124.0,79113.0,0.3608]
[1743965721938,0.3608,79138.0,79114.0,0.1835]
[1743965722144,0.196,79140.0,79131.0,0.3608]
[1743965722328,0.19611661,79140.0,79131.0,0.67090861]
[1743965722524,0.3608,79133.0,79131.0,0.62576484]
[1743965722735,0.04405837,79135.0,79131.0,0.56240633]
[1743965723437,0.1812,79139.0,79131.0,0.56240633]
[1743965723739,0.00011661,79140.0,79131.0,0.56240633]
[1743965723934,0.04419752,79140.0,79131.0,1.07320633]
[1743965724131,0.1093726,79156.0,79132.0,0.189]
[1743965724132,0.557,79154.0,79132.0,0.189]
[1743965724329,0.557,79154.0,79132.0,0.6424]
[1743965724536,0.557,79154.0,79133.0,0.18929623]
[1743965724737,0.3608,79154.0,79135.0,0.3608]
[1743965724930,0.3608,79154.0,79135.0,1.0308]
[1743965725127,0.10949511,79156.0,79149.0,0.3608]
[1743965725332,0.3608,79178.0,79154.0,0.3608]
[1743965725643,0.3608,79178.0,79167.0,0.3608]
[1743965725935,0.34572143,79180.0,79167.0,0.93824149]
[1743965726140,0.04437257,79182.0,79167.0,1.25309752]
[1743965726336,0.00013922,79184.0,79167.0,1.10485603]
[1743965726536,0.00013922,79184.0,79183.0,0.3608]
[1743965726738,0.28747698,79195.0,79183.0,1.0508]
[1743965726933,0.28747698,79195.0,79194.0,0.3608]
[1743965727135,0.28747698,79195.0,79194.0,0.69053538]
[1743965727355,0.1025,79200.0,79194.0,0.88185265]
[1743965727653,0.1025,79200.0,79199.0,0.3608]
[1743965727853,0.3608,79220.0,79199.0,1.09973536]
[1743965728053,0.04587581,79224.0,79208.0,0.3608]
[1743965728349,0.3608,79222.0,79215.0,0.3608]
[1743965728554,0.70652143,79230.0,79215.0,0.67177538]
[1743965728744,0.3608,79239.0,79215.0,0.86029745]
[1743965728947,0.00011677,79236.0,79234.0,0.00014549]
[1743965729155,0.36091677,79236.0,79234.0,0.24000001]
[1743965729458,0.20067895,79235.0,79197.0,0.3608]
[1743965729658,0.3608,79214.0,79197.0,0.9408]
[1743965729854,0.1984,79213.0,79210.0,0.19027796]
[1743965730062,0.36307814,79212.0,79210.0,0.46419796]
[1743965730251,0.00227814,79211.0,79210.0,0.02974365]
[1743965730554,0.20139814,79211.0,79210.0,0.23705038]
[1743965730757,0.53639814,79211.0,79210.0,0.38625385]
[1743965730949,0.53412,79211.0,79210.0,0.57584029]
[1743965731451,0.53412,79211.0,79210.0,0.23]
[1743965731649,0.53639805,79211.0,79210.0,0.29413695]
[1743965731859,0.53412,79211.0,79210.0,0.49077844]
[1743965732057,0.53412,79211.0,79210.0,0.49141844]
[1743965732256,0.53650124,79211.0,79203.0,0.00018934]
[1743965732561,0.3608,79204.0,79203.0,0.23018934]
[1743965732763,0.36204001,79204.0,79203.0,0.23082934]
[1743965732969,0.51204001,79204.0,79203.0,0.39999175]
[1743965733261,0.36431777,79204.0,79203.0,0.48603763]
[1743965733464,0.56503777,79204.0,79203.0,0.48603763]
[1743965733647,0.71543777,79204.0,79203.0,0.48603763]
[1743965734063,0.56543777,79204.0,79203.0,0.48603763]
[1743965734261,0.56543898,79204.0,79203.0,0.48603763]
[1743965734961,0.56316001,79204.0,79203.0,0.42267912]
[1743965735157,0.00391958,79204.0,79203.0,0.42267912]
[1743965735359,0.00010316,79211.0,79203.0,0.57267912]
[1743965735556,0.00142316,79211.0,79204.0,0.1815]
[1743965735756,0.3608,79205.0,79204.0,0.4915]
[1743965735957,0.00010316,79211.0,79205.0,0.19036224]
[1743965736157,0.00010316,79211.0,79205.0,0.50036224]
[1743965736358,0.00010316,79211.0,79205.0,0.31]
[1743965736561,0.00134317,79211.0,79206.0,0.19036224]
[1743965736754,0.00134317,79211.0,79206.0,0.60661291]
[1743965736957,0.3608,79207.0,79206.0,0.60661291]
[1743965737262,0.78167964,79207.0,79166.0,0.32]
[1743965737457,0.3608,79169.0,79166.0,0.21]
[1743965737658,0.19948,79168.0,79166.0,0.21]
[1743965737967,0.19948,79168.0,79167.0,0.17209454]
[1743965738169,0.19948,79168.0,79167.0,0.48209454]
[1743965738359,0.19948,79168.0,79167.0,0.63220246]
[1743965738659,0.00018947,79175.0,79167.0,0.84300246]
[1743965738864,0.00018947,79175.0,79168.0,0.1812]
[1743965739063,0.00018947,79175.0,79168.0,0.4712]
[1743965739262,0.00018947,79175.0,79169.0,0.18957092]
[1743965739458,0.00142948,79175.0,79169.0,0.48957092]
[1743965739658,0.3608,79197.0,79174.0,0.3608]
[1743965739860,0.20096126,79196.0,79177.0,0.3608]
[1743965740060,0.3608,79189.0,79177.0,0.66152]
[1743965740362,0.00088001,79189.0,79178.0,0.314669]
[1743965740569,0.3608,79189.0,79178.0,0.682809]
[1743965740867,0.3608,79179.0,79178.0,0.485309]
[1743965741170,0.36396152,79179.0,79178.0,0.43982319]
[1743965741667,0.36396107,79179.0,79178.0,0.43982319]
[1743965741870,0.36396107,79179.0,79178.0,0.43282319]
[1743965742564,0.51396107,79179.0,79178.0,0.31484022]
[1743965742772,1.29336107,79179.0,79131.0,0.00927806]
[1743965742964,0.3608,79144.0,79143.0,0.06131176]
[1743965743163,0.36416106,79144.0,79143.0,0.06131176]
[1743965743473,0.199,79170.0,79143.0,0.88132557]
[1743965743664,0.00014498,79166.0,79162.0,0.00015641]
[1743965743963,0.00018947,79164.0,79162.0,0.2267979]
[1743965744266,0.00094947,79164.0,79163.0,0.50950585]
[1743965744567,0.00018947,79164.0,79163.0,0.81022585]
[1743965744965,0.00018947,79164.0,79163.0,1.17102585]
[1743965745161,0.00245926,79164.0,79163.0,1.1711655]
[1743965745357,0.34572143,79190.0,79163.0,1.1711655]
[1743965745562,1.27392,79187.0,79178.0,0.3608]
[1743965745767,0.1965,79186.0,79178.0,0.6308]
[1743965745966,0.3608,79190.0,79179.0,0.18896979]
[1743965746168,0.3608,79212.0,79187.0,0.3608]
[1743965746461,0.00096001,79190.0,79188.0,0.1928]
[1743965746663,0.3913,79192.0,79188.0,0.65299926]
[1743965746867,0.00225814,79191.0,79188.0,0.58648979]
[1743965747078,0.00225814,79190.0,79188.0,0.52320426]
[1743965747371,0.1965,79192.0,79189.0,0.1871]
[1743965747565,0.00012694,79193.0,79191.0,0.3608]
[1743965747760,0.5581,79211.0,79191.0,0.3608]
[1743965747761,0.19824,79216.0,79191.0,0.65176]
[1743965747956,0.1918,79215.0,79203.0,0.3608]
[1743965748172,0.1918,79215.0,79203.0,0.68176]
[1743965748369,0.19284001,79215.0,79214.0,0.3608]
[1743965748566,0.00104001,79215.0,79214.0,0.68176]
[1743965748766,0.198,79235.0,79214.0,1.0207198]
[1743965748963,0.3866,79234.0,79227.0,0.3608]
[1743965749169,0.38784001,79234.0,79228.0,0.3766]
[1743965749471,0.00124001,79234.0,79228.0,0.83675151]
[1743965749668,0.1918,79248.0,79228.0,0.83675151]
[1743965749868,9.999e-05,79238.0,79229.0,0.12623951]
[1743965750067,0.38889999,79238.0,79237.0,0.29751447]
[1743965750268,0.38889999,79238.0,79237.0,0.58879447]
[1743965750466,0.38889999,79238.0,79237.0,0.84261695]
[1743965750770,9.999e-05,79238.0,79237.0,0.96882539]
[1743965751573,0.00233702,79238.0,79237.0,1.32962539]
[1743965751971,9.999e-05,79238.0,79237.0,1.32962539]
[1743965752184,0.197,79253.0,79237.0,1.32962539]
[1743965752483,0.3608,79286.0,79252.0,0.3608]
[1743965752663,0.03933028,79276.0,79265.0,0.3608]
[1743965752972,0.378,79275.0,79265.0,0.61204]
[1743965753177,0.30027744,79293.0,79266.0,0.6244825]
[1743965753375,0.1831,79286.0,79266.0,1.1958425]
[1743965753565,0.1956,79285.0,79275.0,0.3608]
[1743965753769,0.1956,79285.0,79276.0,0.3712]
[1743965753969,0.0956,79285.0,79276.0,0.83126988]
[1743965754176,0.00013601,79287.0,79280.0,0.3608]
[1743965754375,0.00013601,79287.0,79280.0,0.67208]
[1743965754568,0.00013601,79287.0,79281.0,0.18874988]
[1743965754771,0.00013601,79287.0,79283.0,0.3608]
[1743965754962,0.0004,79312.0,79283.0,0.3608]
[1743965754963,0.1831,79307.0,79284.0,0.38921671]
[1743965755168,0.1831,79307.0,79289.0,0.3608]
[1743965755376,0.3608,79306.0,79290.0,0.36373814]
[1743965755673,0.1831,79307.0,79291.0,0.01801671]
[1743965755874,0.3608,79303.0,79292.0,0.01801671]
[1743965756165,0.00014931,79305.0,79292.0,0.93869034]
[1743965756474,0.28444428,79300.0,79299.0,0.3608]
[1743965756672,0.00014931,79305.0,79299.0,0.3608]
[1743965756673,0.00014931,79305.0,79299.0,1.09208]
[1743965756866,0.1807,79329.0,79304.0,0.3608]
[1743965757067,0.21821477,79329.0,79317.0,0.3608]
[1743965757267,0.21821477,79329.0,79325.0,0.3608]
[1743965757471,0.193,79328.0,79325.0,0.14124]
[1743965757670,0.193,79328.0,79326.0,0.20029599]
[1743965757880,0.00012059,79327.0,79326.0,0.56763621]
[1743965758270,0.18082059,79327.0,79326.0,0.56763621]
[1743965759275,0.00012059,79327.0,79326.0,0.50435068]
[1743965759777,0.3608,79338.0,79326.0,0.86515068]
[1743965759979,0.1946,79334.0,79327.0,0.01697411]
[1743965760179,0.3608,79328.0,79327.0,0.30829411]
[1743965760382,0.3608,79328.0,79327.0,0.28063532]
[1743965760572,0.36092367,79328.0,79327.0,0.39051949]
[1743965760771,0.51092367,79328.0,79327.0,0.51657202]
[1743965761097,0.70788367,79328.0,79327.0,0.22752819]
[1743965761287,0.70788367,79328.0,79327.0,0.2]
[1743965761580,0.55788367,79328.0,79327.0,0.51454308]